Cogmind - Beta 17.1 @@@ ROGUE MODE // 2026.08.30 @ 19:17:35 Player: TheSkyeDoctor Result: Destroyed by YI-UF0 with YI-UF0's Doublenader Performance ------------- Evolutions (0) 0 Regions Visited (2) 400 Robots Destroyed (23) 115 Value Destroyed (499) 499 Prototype IDs (0) 0 Alien Tech Used (0) 0 Bonus (0) 0 TOTAL SCORE: 1014 Bonus ------- None Cogmind --------- Core Integrity 0/250 Matter 300/300 Energy 89/100 System Corruption 2% Temperature Cool (2) Movement Walking (120) Location -10/Mines Parts ------- > --- POWER (1) -------- (None) > --- PROPULSION (2) --- Aluminum Leg > --- UTILITY (2) ------ Improved Heat Sink > --- WEAPON (2) ------- (None) > --- INVENTORY (5) ---- Aluminum Leg Aluminum Leg Huge Storage Unit Large Matter Pod (150) Improved Terrain Scanner Peak State ------------ > --- POWER ------------ Ion Engine > --- PROPULSION ------- Aluminum Leg Aluminum Leg > --- UTILITY ---------- Small Storage Unit Seismic Detector > --- WEAPON ----------- EM Pulse Gun Light Assault Rifle > --- INVENTORY -------- Light Ion Engine [Rating: 7] Favorites ----------- Power Ion Engine Engine Ion Engine Propulsion Aluminum Leg Leg Aluminum Leg Utility Seismic Detector Device Seismic Detector Storage Huge Storage Unit Protection Light Armor Plating Weapon Light Assault Rifle Energy Gun EM Pulse Gun Ballistic Gun Light Assault Rifle Build | -11 -10 -10 ------- Run | Yrd Mat Min Slots Evolved . | . . . Power . | . . . Propulsion . | . . . Utility . | . . . Weapon . | . . . Parts Attached 17 | 8 7 2 Power 3 | 2 . 1 Engine 3 | 2 . 1 Core . | . . . Reactor . | . . . Propulsion 4 | 2 2 . Treads . | . . . Leg 4 | 2 2 . Wheel . | . . . Hover . | . . . Flight . | . . . Utility 6 | 2 3 1 Device 2 | 1 . 1 Storage 3 | 1 2 . Processor . | . . . Hackware . | . . . Protection 1 | . 1 . Artifact . | . . . Weapon 4 | 2 2 . Energy Gun 2 | 1 1 . Energy Cannon . | . . . Ballistic Gun 2 | 1 1 . Ballistic Cannon . | . . . Launcher . | . . . Special Weapon . | . . . Impact Weapon . | . . . Slashing Weapon . | . . . Piercing Weapon . | . . . Special Melee Weapon . | . . . Unidentified Prototypes . | . . . Corrupted Parts 1 | 1 . . System Corruption 2 | 2 . . Parts Lost 12 | . 7 5 Power 3 | . 2 1 Propulsion 3 | . 2 1 Utility 2 | . 1 1 Weapon 4 | . 2 2 Highest Loss Streak 4 | . 4 1 To Critical Strikes . | . . . Average Backups 3 | . 3 4 Power . | . . . Propulsion . | . . 1 Utility 2 | . 2 3 Weapon . | . . . Tool/Special . | . . . Unused Backups 6 | . 2 4 Power 1 | . 1 . Propulsion 3 | . 1 2 Utility 2 | . . 2 Weapon . | . . . Tool/Special . | . . . Average Slot Usage (%) 76 | . 88 59 Engine 10 | . 12 9 Leg 27 | . 27 28 Device 9 | . 12 4 Storage 5 | . 10 . Protection 2 | . 3 1 Energy Gun 6 | . 7 4 Ballistic Gun 12 | . 13 11 Peak Build Rating 7 | 7 7 6 Average Rating 5 | 5 6 4 On Entrance 4 | . 7 5 Avg Prop Armor Cover (%) . | . . . Naked Turns . | . . . Heaviest Build 89 | 14 89 10 Greatest Support 20 | 20 20 20 Greatest Overweight (x) 4 | . 4 . Average Overweight (x) . | . 1 . Largest Inventory Capacity 25 | 8 25 5 Average Capacity 11 | 7 16 5 Most Carried 5 | 2 5 5 Average Carried 3 | . 3 4 Final Capacity 8 | 8 5 5 Final Carried 5 | 2 5 5 Class Distribution -------------------- 79% | Mutant 20% | Scavenger-Mutant Dominant Class ---------------- Mutant | -10/Materials Mutant | -10/Mines Resources | -11 -10 -10 ----------- Run | Yrd Mat Min Matter Collected 600 | 293 270 37 Remotely . | . . . Salvage Created 735 | 167 473 95 Parts 49 | 14 28 7 Haulers Intercepted . | . . . Recyclers Shooed . | . . . Parts Field Recycled . | . . . Retrieved Matter . | . . . Parts Self-Destructed . | . . . Prevented . | . . . Parts Restored . | . . . Kills | -11 -10 -10 ------- Run | Yrd Mat Min Combat Hostiles Destroyed 18 | . 14 4 Melee 1 | . 1 . Guns 16 | . 12 4 AOE 1 | . 1 . Classes Destroyed 5 | 2 3 . Tunneler 3 | 3 . . Recycler 1 | 1 . . Watcher 1 | . 1 . Swarmer 8 | . 5 3 Grunt 10 | . 9 1 Best Kill Streak 3 | 3 3 3 Combat Bots Only 3 | . 3 3 Max Kills in Single Turn 1 | 1 1 1 Gunslinging . | . . . Exploded 1 | . 1 . Melee 1 | . 1 . Uniques/NPCs Destroyed . | . . . Combat | -11 -10 -10 -------- Run | Yrd Mat Min Hostile Shots Fired 134 | . 95 39 Missed 32 | . 19 13 Hits 102 | . 76 26 Projectile 102 | . 76 26 AOE 3 | . . 3 Critical Strikes 1 | . 1 . Damage Taken 1183 | . 769 414 Core 261 | . 150 111 Absorbed by Shields . | . . . Core Remaining (%) 100 | 100 . . Volleys Fired 97 | 13 62 22 Largest 2 | 2 2 2 Hottest 60 | 60 60 60 Shots Fired 145 | 26 92 27 Gun 145 | 26 92 27 Cannon . | . . . Launcher . | . . . Special . | . . . Kinetic 96 | 13 61 22 Thermal 22 | . 17 5 Explosive . | . . . Electromagnetic 27 | 13 14 . Robot Hit Streak 25 | 5 25 5 Robot Miss Streak 4 | 2 4 2 Penetration Max . | . . . Secondary Targets 2 | . 1 1 Max Gunslinging Chain 1 | . 1 1 Shots Hit Robots 91 | 17 57 17 Core Hits 42 | 6 28 8 Critical Kills . | . . . Critical Parts Destroyed . | . . . Critical Strikes . | . . . Melee Attacks . | . . . Impact . | . . . Slashing . | . . . Piercing . | . . . Sneak Attacks . | . . . Combat Hostiles . | . . . Follow-up Attacks . | . . . Damage Inflicted 1070 | 165 744 161 Guns 894 | 165 570 159 Cannons . | . . . Explosions 169 | . 169 . Melee . | . . . Ramming 7 | . 5 2 Kinetic 487 | 57 304 126 Thermal 322 | . 289 33 Explosive . | . . . Electromagnetic 254 | 108 146 . Impact . | . . . Slashing . | . . . Piercing . | . . . Highest Corruption 2 | 2 2 2 Average Corruption 2 | 2 2 2 Corruption Purged . | . . . Corruption Blocked . | . . . Effects 18 | . 11 7 Message Errors 5 | . 3 2 Matter Fused 3 | . 1 2 Heat Flow Errors 3 | . 2 1 Energy Discharges 3 | . 1 2 Data Loss (minor) 2 | . 2 . Data Loss (major) 1 | . 1 . Weapon Failures 1 | . 1 . Overload Shots . | . . . Overflow Damage . | . . . Projectiles . | . . . Explosions . | . . . Melee . | . . . Knockbacks . | . . . Impact . | . . . Kinetic . | . . . Secondary . | . . . Self-Inflicted Damage 24 | . 24 . Shots 1 | . 1 . Rammed . | . . . Targets Rammed 2 | . 1 1 Kicked 2 | . 1 1 Crushed . | . . . Highest Temperature 303 | 40 303 266 Average Temperature 78 | 21 95 62 Received Heat Transfer 432 | . 294 138 Siege Activations . | . . . Martial Activations . | . . . Shielding Activations . | . . . Robots Disrupted . | . . . Combat Hostiles . | . . . Robots Corrupted . | . . . Combat Hostiles . | . . . Parts Fried . | . . . Impact Corruptions . | . . . Robots Melted . | . . . Combat Hostiles . | . . . Parts Melted 1 | . 1 . Heat Transferred 550 | . 475 75 Parts Sabotaged . | . . . Parts Stolen . | . . . Parts Stripped . | . . . Power Chain Reactions 2 | . 2 . Alert | -11 -10 -10 ------- Run | Yrd Mat Min Maximum Alert Level . | . . . Low Security (%) 100 | 100 100 100 Level 1 . | . . . Level 2 . | . . . Level 3 . | . . . Level 4 . | . . . Level 5 . | . . . High Security . | . . . Max Security . | . . . Peak Influence 101 | 10 101 55 Initial 25 | . . 25 Average 23 | 1 34 13 Influence Increases 573 | 20 393 160 Destroy 0b10 Robot/C 360 | . 280 80 Destroy 0b10 Robot/NC 25 | 20 5 . Destroy Leader 62 | . 42 20 Disable Machine 15 | . 15 . Destroy Structure 6 | . 6 . Lose Combat Pursuer 105 | . 45 60 Influence Decreases 573 | 20 326 227 Entered New Map 42 | . . 42 Time Decay 443 | 20 256 167 Lost Part 88 | . 70 18 Squads Dispatched 2 | . 2 . Investigation 1 | . 1 . Extermination . | . . . Reinforcement 1 | . 1 . Assault . | . . . Garrison . | . . . Intercept . | . . . Searches Triggered . | . . . Construction Impeded . | . . . Haulers Reinforced . | . . . Active Scanning Responses . | . . . Cargo Convoy Interrupts . | . . . Stealth | -11 -10 -10 --------- Run | Yrd Mat Min Distress Signals 3 | . 3 . Communications Jammed . | . . . Distress Signals . | . . . Times Spotted 32 | . 23 9 Peak Tracking Total 6 | . 6 2 Tactical Retreats 5 | . 2 3 Traps | -11 -10 -10 ------- Run | Yrd Mat Min Traps Triggered 1 | . 1 . Indirectly . | . . . Trap Hack Attempts . | . . . Triggered . | . . . Disarmed . | . . . Reprogrammed . | . . . Reused . | . . . Traps Extracted . | . . . Installed . | . . . Triggered . | . . . Machines | -11 -10 -10 ---------- Run | Yrd Mat Min Machines Disabled 1 | . 1 . Max in Single Turn 1 | . 1 . Machines Repaired . | . . . Machines Dismantled . | . . . Machines Sabotaged . | . . . Overloaded Fab Kills . | . . . Hacking | -11 -10 -10 --------- Run | Yrd Mat Min Machines Accessed 1 | . 1 . Terminals 1 | . 1 . Fabricators . | . . . Repair Stations . | . . . Recycling Units . | . . . Scanalyzers . | . . . Garrison Access . | . . . Total Hacks 2 | . 2 . Successful . | . . . Failed 2 | . 2 . Catastrophic . | . . . Database Lockouts . | . . . Manual 2 | . 2 . Terminals 2 | . 2 . Fabricators . | . . . Repair Stations . | . . . Recycling Units . | . . . Scanalyzers . | . . . Garrison Access . | . . . Terminal Hacks . | . . . Fabricator Hacks . | . . . Repair Station Hacks . | . . . Recycling Unit Hacks . | . . . Scanalyzer . | . . . Garrison Access Hacks . | . . . Unauthorized Hacks . | . . . Terminals . | . . . Fabricators . | . . . Repair Stations . | . . . Recycling Units . | . . . Scanalyzers . | . . . Garrison Access . | . . . Data Cores Recovered . | . . . Used . | . . . Hacking Detections 1 | . 1 . Full Trace Events . | . . . Feedback Events . | . . . Feedback Blocked . | . . . Robot Schematics Acquired . | . . . Robots Built . | . . . Authchips . | . . . Time . | . . . Total Robot Build Rating . | . . . Part Schematics Acquired . | . . . Parts Built . | . . . Authchips . | . . . Time . | . . . Total Part Build Rating . | . . . Part Studies Acquired . | . . . Parts Repaired . | . . . Time . | . . . Parts Recycled . | . . . Recycled Matter . | . . . Retrieved Matter . | . . . Retrieved Components . | . . . Parts Scanalyzed . | . . . Part Schematics Acquired . | . . . Parts Damaged . | . . . Bothacking | -11 -10 -10 ------------ Run | Yrd Mat Min Used RIF Installer . | . . . Robots Hacked . | . . . Non-combat . | . . . Combat . | . . . Robot Hacks Applied . | . . . Relay Couplers Released . | . . . Fabnet Peak Effective % . | . . . Robots Rewired . | . . . Allies Hacked . | . . . Hacks Repelled . | . . . Allies | -11 -10 -10 -------- Run | Yrd Mat Min Total Allies . | . . . Largest Group . | . . . Highest-Rated Group . | . . . Highest-Rated Ally . | . . . Total Orders . | . . . Ally Attacks . | . . . Total Damage . | . . . Kills . | . . . Allies Corrupted . | . . . Allies Melted . | . . . Intel | -11 -10 -10 ------- Run | Yrd Mat Min Active Infowar (turns) 775 | 57 718 . Seismic 775 | 57 718 . Robot Analysis Total . | . . . Derelict Logs Recovered 1 | . . 1 Drone Launches . | . . . Drone Recoveries . | . . . Exploration | -11 -10 -10 ------------- Run | Yrd Mat Min Turns Passed 1561 | 151 831 579 Spaces Moved 805 | 88 299 418 Core 4 | 4 . . Treads . | . . . Legs 801 | 84 299 418 Wheels . | . . . Hover . | . . . Flight . | . . . Fastest Speed 50 | 50 120 120 Average Speed 155 | 116 215 120 Slowest Speed 400 | 120 400 120 Overloaded Moves . | . . . Propulsion Burnouts . | . . . Robots Hopped . | . . . Potential Cave-ins . | . . . Cave-ins Triggered . | . . . Exploration Rate (%) 47 | 5 60 78 Regions Visited 2 Branch Regions 1 Pre-discovered Areas . | . . . Known Exits Taken . | . . . Unknown Exits Taken 2 | 1 1 . Scrap Searched . | . . . Spaces Dug . | . . . Terrain Destroyed 5 | . 5 . Melee . | . . . Projectile . | . . . AOE 5 | . 5 . Terrain Rammed . | . . . Walls Destroyed . | . . . Machines Disabled . | . . . Actions | -11 -10 -10 --------- Run | Yrd Mat Min Total 984 | 109 402 473 Wait 51 | . 22 29 Move 803 | 87 298 418 Hop . | . . . Pick Up 8 | 1 6 1 Fast Attach 12 | 7 4 1 Attach 3 | . 2 1 Detach 1 | . 1 . Swap 3 | 1 2 . Drop 4 | . 4 . Fire 97 | 13 62 22 Melee . | . . . Ram . | . . . Kick 2 | . 1 1 Crush . | . . . Escape Stasis . | . . . Rewire . | . . . Trap . | . . . Miscellaneous . | . . . Route ------- -11/Scrapyard -10/Materials (discovered 3 exits: [*Mat x2] / [*Min]) -10/Mines History --------- Turn | Location | Event 7 | -11/Scrapyard | Discovered new exit (range 14) 152 | -11/Scrapyard | Entered Materials 315 | -10/Materials | Build established: Mutant 563 | -10/Materials | Discovered new exit (range 15) 795 | -10/Materials | Discovered new exit (range 16) 860 | -10/Materials | Core integrity fell below 50% 926 | -10/Materials | Lost 4 parts (1p2n1u) 950 | -10/Materials | Discovered new exit (range 8) 983 | -10/Materials | Entered Mines 1063 | -10/Mines | Learned location of 1 exit from Materials 1358 | -10/Mines | Core integrity fell below 20% 1548 | -10/Mines | Assembled infested the area 1553 | -10/Mines | Assisted by a Guerilla fighting off Assembled 1562 | -10/Mines | Destroyed by YI-UF0 with YI-UF0's Doublenader Last Messages --------------- 01448_ Lgt. Assault Rifle destroyed. 01503_ Acquired 16 matter. 01519_ System corrupted: Energy discharge (-35). 01534_ System corrupted: Matter fused (-6). 01535_ Acquired 4 matter. 01547_ The unstable cave ceiling collapses. 01548_ ALERT: Infestation in the mines, dispatching Demolisher response squad. 01548_ K-01 Serf collects debris. 01553_ A derelict emerges from the shadows: "You need to get out of here! I've been tracking a group of Assembled to figure out where they're coming from, and they're closing on this area, come on!" 01554_ The unstable cave ceiling collapses. 01555_ U-05 Engineer lays Concrete. 01557_ U-05 Engineer builds a Wall. 01559_ YI-UF0 mumbles something. 01562_ HT-ND2(h) destroyed. 01562_ Aluminum Leg destroyed. Map ----- +----------------------------------------------------+ | ?# ##??# #?????# #????## #??????## | | ?# #### ##???## ###### #???????## # | | ## ## ##?## ##???????#### | | # ## ### ##?????????? | | ##### ##### #?????????? | | ##???## #???# #?????????? | | # ## ##?????# ## ##?## ##?????????? | | ########?????# ###### # ## ##??????????# | | ?????????????# ##????# ###????????## | | ?????????????## ##???### #????????# | | ??????????????####???## ##???????# | | ????????????????????## #???????# | | ????????????????????# * #???????# | | ????????????????????# #????#### | | ????????????????????# ##????# | | ?????????????????#### r #?????# ### | | ????????????????? ## ## ##?????# #?# | | ?????????????????? #### ### # #??????# #?? | | ??????????????????? # # ###??????# #?? | | ????????????##???? # # # #????#??# #?? | | ????????????# ?????# # #?? #### #?? | | ??????????# ???? # # # ## ## #?? | | ?????????? ??# # ### ! # #?? | | ?????????????# # ! ## * % #?? | | ????????????????# g=%!% = # #??? | | ????????????????# # # @ # * ## #??? | | ?????????????????????# # ## # #?##??? | | ???????????????????# #?????? | | ????????????????? # # # ### ####?????? | | ????????????????####?#### ###? ## ???????? | | ????????????????????????# ?? #?## ###??????? | | ???????????????????????? ? ??? ???????? | | ???????????????????????? ? """??? ####??????? | | ???????????????????????? """ ?? ?????????? | | ???????????????????????? """???? #????????? | | ??????????????????????? ### ?????##????????? | | ???????????????????????## #??###????????????????? | | ?????????????????????????###?????????????????????? | | ?????????????????????????????????????????????????? | | ?????????????????????????????????????????????????? | | ?????????????????????????????????????????????????? | | | | | | | | | | | | | | | | | | | +----------------------------------------------------+ Best States ------------- Heat Dissipation 39 Energy Generation 10 Energy Capacity 250 Matter Stores 300 Matter Capacity 300 Sight Range 16 Terrain Scan Density 10 Armor Coverage 150 Evasion (%) 55 Item Schematics ----------------- None Robot Schematics ------------------ None Fabricated ------------ Nothing Repaired ---------- Nothing Studied --------- None Alien Tech Used ----------------- None Achievements -------------- None Challenges ------------ None Game ------ Seed LinearRegenerativeBrace Manual? 0 Play Time 00:09:44 Cumulative 183.3 hours Start 2026.08.30 @ 19:10:36 End 2026.08.30 @ 19:17:35 Sessions 1 Manual Loads 0 Difficulty Rogue Special Mode None Game No. 365 Rogue 365 Adventurer 0 Explorer 0 Win Type - Total 2 Types 2/0/0/0/0/0/0/0/0/0 Lore% 59 Gallery% 60 Achievement% 47 Wizard Run 0 Options --------- Layout 2 ASCII 0 Keyboard 1 Movement Arrows Keybinds 0 Fullscreen 1 Font 24/Smallcaps Map View 50x44 Zoom Use 0% Tactical HUD 1 Map Filters NONE Filters NONE Steam 1 RUN: 7ebb8ce3-c0d3-4e81-a248-6ae9ab147c4b